bitfinex-derivatives/quotes_SOLF0:USTF0_20250514
["timestamp","ask_amount","ask_price","bid_price","bid_amount"]
[1747188071244,5.43984835,183.13,182.94,317.55574835]
[1747188071432,5.43984835,183.13,182.94,312.1159]
[1747188072444,5.43984835,183.09,182.94,89.1159]
[1747188072745,170.94,183.08,182.94,89.1159]
[1747188072943,170.94,183.08,183.02,5.4634]
[1747188073145,170.94,183.08,182.94,89.1159]
[1747188073737,170.94,183.08,182.94,85.6]
[1747188074341,176.4019,183.08,182.94,85.6]
[1747188074539,5.43984835,183.07,182.89,89.2754]
[1747188074843,5.43984835,183.03,182.84,109.85251575]
[1747188075044,178.1406,183.02,182.84,91.03984835]
[1747188075246,172.677,183.02,182.84,91.03984835]
[1747188075434,176.1271,183.02,182.84,85.6]
[1747188075634,5.43984835,182.99,182.84,85.6]
[1747188075838,5.43984835,182.99,182.83,226.6754]
[1747188076246,176.1271,183.02,182.83,226.6754]
[1747188076448,176.1271,183.02,182.83,3.6754]
[1747188076641,5.4654,182.96,182.82,223.0]
[1747188076946,170.86,182.95,182.8,695.2]
[1747188077145,170.86,182.94,182.8,695.2]
[1747188077845,170.86,182.94,182.88,5.4677]
[1747188078148,5.4669,182.91,182.78,448.85307893]
[1747188078449,170.86,182.94,182.78,136.64057893]
[1747188078450,1.7191,182.93,182.78,136.64057893]
[1747188079246,170.86,182.92,182.78,136.64057893]
[1747188079449,170.86,182.92,182.86,5.4683]
[1747188079641,170.86,182.92,182.78,359.64057893]
[1747188079952,5.467,182.91,182.78,136.64057893]
[1747188080246,170.84,182.9,182.78,136.64057893]
[1747188080948,170.84,182.9,182.74,226.6125]
[1747188081143,170.84,182.9,182.74,3.6125]
[1747188081348,170.84,182.9,182.73,85.62]
[1747188081848,0.94716141,182.89,182.73,85.62]
[1747188082047,0.94716141,182.89,182.7,228.43984835]
[1747188082447,5.469,182.84,182.7,223.0]
[1747188082743,172.6678,182.83,182.7,223.0]
[1747188082945,170.84,182.82,182.7,223.0]
[1747188083140,170.84,182.82,182.68,3.5774]
[1747188083340,5.43984835,182.77,182.64,223.0]
[1747188083551,5.472,182.74,182.54,223.95257647]
[1747188083753,1.8278,182.73,182.54,223.95257647]
[1747188083946,1.8278,182.73,182.53,308.66]
[1747188084141,1.8278,182.73,182.54,5.43984835]
[1747188084142,5.4729,182.71,182.54,5.43984835]
[1747188084342,173.52,182.7,182.53,308.66]
[1747188085453,1.8278,182.73,182.61,5.43984835]
[1747188085651,96.2919,182.76,182.61,5.43984835]
[1747188085843,96.2919,182.76,182.72,5.4725]
[1747188086044,92.84,182.76,182.61,223.0]
[1747188086247,92.84,182.76,182.63,5.43984835]
[1747188086444,92.84,182.76,182.75,5.4716]
[1747188087050,1.7306,182.8,182.68,5.43984835]
[1747188087254,97.96,182.82,182.7,8.8286358]
[1747188087443,324.70412832,182.83,182.7,8.8286358]
[1747188087752,98.4,182.83,182.74,8.8286358]
[1747188088149,98.3,182.85,182.7,8.8286358]
[1747188088345,98.3,182.85,182.72,8.8286358]
[1747188088550,1.8273,182.84,182.72,8.8286358]
[1747188088947,1.8273,182.84,182.68,8.8286358]
[1747188089653,1.8273,182.84,182.76,5.4711]
[1747188090048,1.8273,182.84,182.66,106.6886358]
[1747188090049,5.4696,182.82,182.66,106.6886358]
[1747188090248,1.8273,182.84,182.66,106.6886358]
[1747188090557,1.7258,182.83,182.66,106.6886358]
[1747188090957,1.8273,182.84,182.7,8.8286358]
[1747188091153,98.58,182.83,182.7,8.8286358]
[1747188091357,98.6,182.86,182.74,8.8286358]
[1747188091654,97.86,182.88,182.75,1.8516]
[1747188091853,98.48,182.87,182.75,1.8516]
[1747188092054,98.48,182.87,182.76,8.8286358]
[1747188093258,98.48,182.87,182.86,5.4683]
[1747188094160,97.86,182.88,182.87,5.468]
[1747188094354,3.5701,182.96,182.8,8.8286358]
[1747188094659,196.8,182.95,182.8,8.8286358]
[1747188094958,196.8,182.95,182.9,5.467]
[1747188095156,196.8,182.95,182.8,106.6886358]
[1747188095557,1.7514,182.96,182.84,8.8286358]
[1747188095759,100.5714,182.96,182.84,8.8286358]
[1747188096154,100.5714,182.96,182.92,5.4665]
[1747188096556,100.5714,182.96,182.88,5.4675]
[1747188096956,5.4662,182.94,182.8,97.86]
[1747188097155,100.5714,182.96,182.8,97.86]
[1747188097466,5.4672,182.9,182.79,8.8286358]
[1747188097751,1.7514,182.96,182.79,8.8286358]
[1747188097947,196.3,182.95,182.79,8.8286358]
[1747188098152,8.8286358,182.94,182.82,5.4695]
[1747188098363,10.5354358,182.94,182.75,99.7116]
[1747188098655,5.4676,182.89,182.75,99.7116]
[1747188098856,99.62,182.88,182.75,99.7116]
[1747188099060,197.46,182.88,182.75,99.7116]
[1747188099362,197.46,182.88,182.83,5.4692]
[1747188099557,197.46,182.88,182.75,99.7116]
[1747188100261,197.46,182.88,182.84,5.4687]
[1747188100660,202.9278,182.88,182.75,99.7116]
[1747188100960,1.8484,182.87,182.75,99.7116]
[1747188102960,97.86,182.91,182.78,8.8286358]
[1747188103255,98.58,182.9,182.78,8.8286358]
[1747188104160,1.8484,182.93,182.78,8.8286358]
[1747188104363,97.84,182.96,182.82,8.8286358]
[1747188104661,98.5,182.95,182.82,231.8286358]
[1747188104852,98.5,182.95,182.82,329.6686358]
[1747188105052,98.5,182.95,182.87,5.468]
[1747188105255,98.5,182.95,182.82,329.6686358]
[1747188106062,5.4663,182.93,182.88,5.4675]
[1747188106463,98.5,182.95,182.82,106.6686358]
[1747188106867,1.8137,182.98,182.86,8.8286358]
[1747188107054,99.8737,182.98,182.86,231.8286358]
[1747188107261,98.06,182.98,182.97,5.4651]
[1747188107558,97.84,183.0,182.9,8.8286358]
[1747188107755,7.2178,183.05,182.9,231.8286358]
[1747188107963,195.8,183.04,182.9,231.8286358]
[1747188108465,195.8,183.04,183.01,5.4637]
[1747188108659,195.8,183.04,182.9,223.0]
[1747188109062,97.62,183.04,182.92,8.8286358]
[1747188109564,97.5,183.05,182.92,8.8286358]
[1747188109765,97.5,183.05,182.96,8.8286358]
[1747188109963,474.5263,183.08,182.96,231.8286358]
[1747188110162,571.9863,183.08,182.96,231.8286358]
[1747188110363,571.8663,183.08,182.96,231.8286358]
[1747188111262,571.8663,183.08,183.06,5.4623]
[1747188111466,571.8663,183.08,182.96,231.8286358]
[1747188111764,571.8663,183.08,182.96,329.6486358]
[1747188112168,474.5263,183.08,182.96,329.6486358]
[1747188112866,472.7,183.08,183.07,5.4621]
[1747188113060,96.66,183.09,183.0,8.8286358]
[1747188113260,1.7166,183.13,183.0,8.8286358]
[1747188113466,96.22,183.12,183.09,5.4614]
[1747188113964,99.5166,183.13,183.11,5.4609]
[1747188114156,95.96,183.12,183.01,3.5095]
[1747188114361,95.96,183.12,183.01,226.5095]
[1747188114561,95.96,183.12,183.1,5.4611]
[1747188114958,95.96,183.12,183.01,226.5095]
[1747188115164,95.96,183.12,183.01,3.5095]
[1747188115863,99.5166,183.13,183.01,3.5095]
[1747188116066,95.34,183.12,183.09,5.4612]
[1747188117969,95.34,183.12,183.1,5.4612]
[1747188118266,95.34,183.12,183.01,3.5095]
[1747188118666,95.34,183.12,183.09,5.4614]
[1747188119469,95.34,183.12,183.01,3.5095]
[1747188119664,472.56,183.17,183.03,6.09358529]
[1747188119866,188.96,183.16,183.03,6.09358529]
[1747188120066,188.96,183.16,183.03,100.79358529]
[1747188121970,188.6,183.16,183.03,100.79358529]
[1747188122572,94.7,183.16,183.15,5.4597]
[1747188122767,94.7,183.16,183.07,229.09358529]
[1747188122966,94.7,183.16,183.03,323.79358529]
[1747188123172,94.7,183.16,183.13,5.4602]
[1747188123367,94.7,183.16,183.03,323.79358529]
[1747188124174,100.1596,183.16,183.11,5.4609]
[1747188124481,94.7,183.16,183.03,94.7]
[1747188124774,5.4606,183.13,183.01,3.5095]
[1747188124973,93.62,183.12,183.01,3.5095]
[1747188125875,93.62,183.12,183.09,5.4613]
[1747188126178,93.62,183.12,183.01,3.5095]
[1747188126372,93.62,183.12,182.98,317.68]
[1747188126373,5.4609,183.11,182.98,94.68]
[1747188126573,1.8703,183.1,182.98,94.68]
[1747188126768,94.66,183.09,182.98,94.68]
[1747188128176,94.66,183.09,183.06,5.4621]
[1747188128375,94.66,183.09,182.98,94.68]
[1747188128577,94.66,183.09,182.93,94.66]
[1747188128773,5.4624,183.06,182.91,478.65358529]
[1747188128975,92.8,183.05,182.89,3.6188]
[1747188129274,92.8,183.05,182.98,5.4646]
[1747188129470,5.463,183.04,182.98,5.4646]
[1747188129668,92.8,183.05,182.95,5.4654]
[1747188129868,6.09358529,183.04,182.87,136.5440226]
[1747188130073,478.27358529,183.04,182.87,136.5440226]
[1747188130476,478.27358529,183.04,182.84,3.6188]
[1747188130674,6.09358529,183.0,182.84,3.6188]
[1747188130871,191.2647,182.99,182.83,94.68]
[1747188131273,196.7292,182.99,182.83,94.68]
[1747188131473,196.7292,182.99,182.9,5.4669]
[1747188131671,196.7292,182.99,182.8,6.09358529]
[1747188131672,5.4658,182.95,182.8,6.09358529]
[1747188131974,6.09358529,182.96,182.77,94.7]
[1747188132372,5.4659,182.95,182.77,94.7]
[1747188132580,6.09358529,182.96,182.77,94.7]
[1747188132974,6.09358529,182.97,182.87,5.4679]
[1747188133174,6.09358529,182.97,182.73,472.18]
[1747188133473,6.09358529,182.97,182.72,100.79358529]
[1747188133474,5.4678,182.88,182.72,94.7]
[1747188133675,192.5791,182.87,182.72,94.7]
[1747188134078,192.5791,182.87,182.86,5.4683]
[1747188134274,190.7851,182.87,182.86,2.6332]
[1747188134478,3.5451,182.87,182.86,2.6332]
[1747188134681,1.7373,182.87,182.86,2.6332]
[1747188134880,1.7373,182.87,182.72,187.16]
[1747188135079,1.7191,182.86,182.72,94.7]
[1747188135980,1.7191,182.86,182.71,5.2406]
[1747188135981,1.7191,182.86,182.79,5.4703]
[1747188136181,1.7191,182.86,182.71,1.7322]
[1747188136383,9.93062394,182.85,182.65,1.7224]
[1747188136578,94.72,182.84,182.65,1.7224]
[1747188137178,94.72,182.84,182.75,5.4716]
[1747188137375,94.72,182.84,182.62,98.4157]
[1747188137571,9.93062394,182.81,182.62,98.4157]
[1747188137776,92.76,182.8,182.62,96.6042]
[1747188137976,5.471,182.77,182.62,96.6042]
[1747188138179,96.5334,182.76,182.62,96.6042]
[1747188138582,1.7708,182.75,182.58,9.93062394]
[1747188138785,93.32,182.74,182.58,9.93062394]
[1747188139177,93.32,182.74,182.65,5.4744]
[1747188139407,1.7669,182.73,182.57,96.5371]
[1747188139581,5.4734,182.7,182.55,1.7304]
[1747188139784,94.76,182.69,182.44,223.0]
[1747188139975,5.4759,182.61,182.4,3.5075]
[1747188140284,222.6113,182.6,182.4,3.5075]
[1747188140479,115.62,182.59,182.4,3.5075]
[1747188140881,131.02722394,182.59,182.48,5.4796]
[1747188141080,115.62,182.59,182.4,3.5075]
[1747188141488,9.93062394,182.57,182.4,3.5075]
[1747188141683,115.62,182.59,182.4,3.5075]
[1747188141885,5.4772,182.57,182.47,5.4799]
[1747188142078,125.55062394,182.59,182.47,5.4799]
[1747188142483,115.62,182.59,182.4,3.5075]
[1747188143084,115.62,182.59,182.4,13.43812394]
[1747188143283,126.46,182.58,182.4,3.5075]
[1747188143584,126.46,182.58,182.43,9.93062394]
[1747188143783,126.46,182.58,182.4,3.5075]
[1747188144184,126.46,182.58,182.43,9.93062394]
[1747188144883,126.46,182.58,182.4,3.5075]
[1747188144884,126.46,182.58,182.4,1.7771]
[1747188145081,473.06,182.57,182.4,1.7771]
[1747188145281,473.06,182.57,182.48,5.4797]
[1747188145583,473.06,182.57,182.4,1.7771]
[1747188146086,133.82,182.56,182.42,9.93062394]
[1747188146692,133.7,182.57,182.46,9.93062394]
[1747188146883,133.7,182.57,182.47,1.7548]
[1747188147182,1.833,182.6,182.5,9.93062394]
[1747188147387,134.72,182.65,182.5,9.93062394]
[1747188147579,134.72,182.65,182.61,5.4757]
[1747188147790,134.72,182.65,182.5,232.93062394]
[1747188147985,134.72,182.65,182.51,1.7693]
[1747188148181,134.72,182.65,182.51,224.7693]
[1747188148387,134.72,182.65,182.51,11.69992394]
[1747188148590,1.8326,182.66,182.65,5.4746]
[1747188149289,1.8326,182.66,182.55,9.93062394]
[1747188149290,137.3559,182.7,182.69,5.4734]
[1747188149491,137.3559,182.7,182.56,1.8393]
[1747188149686,1.8759,182.7,182.56,1.8393]
[1747188150288,1.8759,182.7,182.52,359.9722]
[1747188150489,1.8759,182.7,182.63,5.4752]
[1747188150790,1.8759,182.7,182.52,359.9722]
[1747188150791,1.8759,182.7,182.55,9.93062394]
[1747188150992,1.8759,182.7,182.64,5.4749]
[1747188151188,1.8759,182.7,182.55,9.93062394]
[1747188151492,5.4735,182.69,182.62,5.4755]
[1747188151992,1.8759,182.7,182.62,5.4755]
[1747188152190,1.8759,182.7,182.52,136.9722]
[1747188152390,134.72,182.69,182.55,9.93062394]
[1747188152591,134.72,182.69,182.68,5.4737]
[1747188153387,136.9804,182.71,182.7,5.4731]
[1747188153589,136.9804,182.71,182.59,9.93062394]
[1747188153790,136.9804,182.71,182.55,9.93062394]
[1747188154091,136.9804,182.71,182.63,5.4749]
[1747188154289,142.4535,182.71,182.55,9.93062394]
[1747188154491,136.9804,182.71,182.55,9.93062394]
[1747188155294,5.4734,182.7,182.55,9.93062394]
[1747188155491,136.9804,182.71,182.55,9.93062394]
[1747188156293,136.9804,182.71,182.52,146.90282394]
[1747188156493,136.9804,182.71,182.52,369.90282394]
[1747188156796,136.9804,182.71,182.67,5.474]
[1747188157299,136.9804,182.71,182.68,5.4736]
[1747188157500,132.68,182.7,182.56,9.93062394]
[1747188157901,132.68,182.7,182.67,5.4739]
[1747188158204,132.68,182.7,182.57,1.732]
[1747188158396,132.68,182.7,182.67,5.474]
[1747188158896,132.68,182.7,182.57,1.732]
[1747188159597,132.68,182.7,182.65,5.4746]
[1747188159900,9.93062394,182.69,182.53,223.0]
[1747188160098,9.93062394,182.69,182.58,5.4765]
[1747188160303,9.93062394,182.69,182.51,1.7693]
[1747188160497,9.9578524,182.68,182.56,5.4773]
[1747188160699,1.7541,182.67,182.47,1.7081]
[1747188160897,1.7541,182.67,182.45,1.731]
[1747188160898,9.9578524,182.64,182.45,1.731]
[1747188161198,5.4764,182.59,182.45,1.731]
[1747188161497,5.4772,182.57,182.45,1.731]
[1747188161706,138.1381,182.58,182.45,1.731]
[1747188161905,138.1381,182.58,182.51,5.4788]
[1747188162199,138.1381,182.58,182.4,1.7081]
[1747188162400,138.1381,182.58,182.5,5.4789]
[1747188162594,143.6151,182.58,182.4,1.7081]
[1747188162794,138.1381,182.58,182.4,3.5294]
[1747188163103,5.477,182.57,182.5,5.4789]
[1747188163306,138.1381,182.58,182.4,3.5294]
[1747188163606,5.4773,182.56,182.49,5.4791]
[1747188163801,138.4878,182.55,182.4,3.5294]
[1747188164697,135.16,182.54,182.4,3.5294]
[1747188165402,136.9727,182.54,182.4,3.5294]
[1747188166006,5.4783,182.53,182.46,5.4803]
[1747188166207,136.9727,182.54,182.4,1.8213]
[1747188166608,135.04,182.53,182.4,11.78648476]
[1747188167008,135.04,182.53,182.4,1.8213]
[1747188167411,1.8078,182.55,182.54,5.4779]
[1747188167604,1.8078,182.55,182.43,9.96518476]
[1747188167800,1.8078,182.55,182.43,232.96518476]
[1747188168203,1.8078,182.55,182.44,1.8375]
[1747188168513,1.8078,182.55,182.52,5.4783]
[1747188168706,1.8078,182.55,182.44,1.8375]
[1747188169003,1.8078,182.55,182.53,5.4781]
[1747188169212,1.8078,182.55,182.44,1.8375]
[1747188169506,1.8078,182.55,182.47,5.4799]
[1747188169712,1.8078,182.55,182.4,224.8213]
[1747188170114,5.4791,182.51,182.4,224.8213]
[1747188170312,1.8078,182.55,182.4,224.8213]
[1747188170510,1.8078,182.55,182.4,234.78268679]
[1747188171012,1.8078,182.55,182.4,224.8213]
[1747188171403,5.4786,182.52,182.47,5.48]
[1747188171604,1.8078,182.55,182.47,5.48]
[1747188171814,1.8078,182.55,182.4,224.8213]
[1747188172415,1.8078,182.55,182.4,1.8213]
[1747188172913,1.8078,182.55,182.46,5.4802]
[1747188173414,5.4788,182.52,182.47,5.48]
[1747188173616,133.24,182.51,182.47,5.48]
[1747188173908,133.24,182.51,182.4,1.8213]
[1747188174113,134.5878,182.55,182.41,9.96138679]
[1747188174313,1.8078,182.55,182.41,9.96138679]
[1747188174514,134.5478,182.55,182.53,5.478]
[1747188174714,134.5478,182.55,182.41,9.96138679]
[1747188174905,132.74,182.55,182.41,232.96138679]
[1747188175612,265.62,182.57,182.41,232.96138679]
[1747188176215,5.4777,182.55,182.41,232.96138679]
[1747188176415,265.62,182.57,182.41,232.96138679]
[1747188176711,265.62,182.57,182.41,223.0]
[1747188177209,5.4787,182.52,182.46,5.4801]
[1747188177415,265.62,182.57,182.41,223.0]
[1747188177611,275.58138679,182.57,182.41,223.0]
[1747188177814,5.4794,182.5,182.4,1.8213]
[1747188178012,132.12,182.49,182.4,1.8213]
[1747188178519,132.12,182.49,182.48,5.4797]
[1747188178922,1.8581,182.58,182.4,1.8213]
[1747188179114,265.02,182.57,182.4,224.8213]
[1747188179322,9.96138679,182.56,182.4,224.8213]
[1747188179818,9.96138679,182.56,182.4,1.8213]
[1747188180121,5.4777,182.55,182.4,1.8213]
[1747188180321,265.02,182.57,182.4,1.8213]
[1747188180720,5.4785,182.53,182.46,5.4801]
[1747188180922,133.24,182.57,182.4,1.8213]
[1747188181419,9.96138679,182.53,182.32,8.95417354]
[1747188181624,473.64,182.52,182.32,8.95417354]
[1747188181818,5.481,182.44,182.38,5.4827]
[1747188182019,1.7659,182.51,182.32,8.95417354]
[1747188182321,9.96138679,182.48,182.32,8.95417354]
[1747188182521,9.96138679,182.39,182.21,3.6649]
[1747188182718,473.7,182.38,182.21,1.7828]
[1747188185020,473.7,182.38,182.23,9.96138679]
[1747188185220,473.7,182.38,182.21,1.7828]
[1747188186924,473.7,182.38,182.25,5.4864]
[1747188187125,473.7,182.38,182.21,1.7828]
[1747188187422,473.7,182.38,182.25,5.4864]
[1747188187625,473.7,182.38,182.21,1.7828]
[1747188187819,3.5969,182.37,182.21,1.7828]
[1747188188018,3.5969,182.37,182.23,9.96138679]
[1747188189124,3.5969,182.37,182.23,232.96138679]
[1747188189325,1.7628,182.37,182.23,232.96138679]
[1747188189527,1.7628,182.37,182.3,5.485]
[1747188189918,1.7628,182.37,182.21,224.7828]
[1747188190123,1.7628,182.37,182.21,1.7828]
[1747188190327,5.4844,182.33,182.21,1.7828]
[1747188190527,11.72418679,182.37,182.21,1.7828]
[1747188191122,11.72418679,182.37,182.13,232.96138679]
[1747188191319,5.4848,182.32,182.14,3.6264]
[1747188191522,11.72418679,182.37,182.17,9.96138679]
[1747188191722,1.7628,182.37,182.17,223.0]
[1747188191921,5.4835,182.36,182.2,9.96138679]
[1747188192128,1.7628,182.37,182.24,9.96138679]
[1747188192327,5.4834,182.36,182.25,1.8459]
[1747188192526,1.7628,182.37,182.29,5.4854]
[1747188192929,1.7628,182.37,182.25,1.8459]
[1747188194025,473.7,182.38,182.26,1.8806]
[1747188194225,473.7,182.38,182.25,1.8459]
[1747188195332,473.7,182.38,182.32,5.4845]
[1747188195629,473.7,182.38,182.25,1.8459]
[1747188196028,473.7,182.38,182.32,5.4845]
[1747188196231,473.7,182.38,182.25,1.8459]
[1747188196529,9.96138679,182.37,182.26,5.486]
[1747188196929,5.4846,182.32,182.26,5.486]
[1747188197230,5.4846,182.32,182.25,5.4866]
[1747188197428,9.96138679,182.37,182.21,1.8806]
[1747188197628,473.7,182.38,182.21,1.8806]
[1747188198024,473.7,182.38,182.24,5.4869]
[1747188198232,473.7,182.38,182.21,1.8806]
[1747188198429,473.7,182.38,182.17,1.7857]
[1747188198633,5.4855,182.29,182.17,1.7857]
[1747188198835,9.96138679,182.35,182.17,1.7857]
[1747188199130,3.6395,182.34,182.17,1.7857]
[1747188199336,3.6395,182.34,182.19,5.4882]
[1747188199631,3.6395,182.34,182.16,11.67808679]
[1747188199832,3.6395,182.34,182.16,1.7167]
[1747188200332,9.96138679,182.31,182.13,1.8473]
[1747188201030,13.60088679,182.34,182.13,1.8473]
[1747188201031,20.0595,182.34,182.13,1.8473]
[1747188201233,9.96138679,182.29,182.01,16.4815]
[1747188201428,9.96138679,182.29,182.09,3.4802]
[1747188201629,5.4863,182.27,182.19,5.4885]
[1747188201829,13.60088679,182.34,182.12,9.96138679]
[1747188202229,3.6395,182.34,182.13,9.96138679]
[1747188202726,5.4858,182.28,182.13,9.96138679]
[1747188202931,3.6395,182.34,182.12,9.96138679]
[1747188203132,3.6395,182.34,182.09,65.4802]
[1747188203330,3.6395,182.34,182.15,9.96138679]
[1747188204232,3.6395,182.34,182.09,65.4802]
[1747188204727,13.60088679,182.34,182.15,9.96138679]
[1747188204926,13.60088679,182.34,182.18,5.4886]
[1747188205131,9.96138679,182.3,182.09,3.4802]
[1747188205333,9.96138679,182.3,182.09,13.44158679]
[1747188206039,5.4872,182.24,182.17,5.4889]
[1747188206541,9.96138679,182.3,182.09,13.44158679]
[1747188207241,5.4869,182.25,182.09,13.44158679]
[1747188207433,9.96138679,182.3,182.09,13.44158679]
[1747188207630,9.96138679,182.3,182.09,3.4802]
[1747188207938,9.96138679,182.28,182.15,5.4895]
[1747188208141,474.3,182.27,182.15,5.4895]
[1747188208333,474.3,182.27,182.1,1.8036]
[1747188208529,1.7618,182.26,182.13,5.4903]
[1747188208730,1.7618,182.26,182.1,1.8036]
[1747188209027,1.7618,182.26,182.12,9.96138679]
[1747188209428,474.3,182.27,182.12,9.96138679]
[1747188209627,474.3,182.27,182.22,5.4874]
[1747188209834,474.3,182.27,182.12,9.96138679]
[1747188210037,474.3,182.27,182.25,5.4866]
[1747188210540,474.3,182.27,182.26,5.4863]
[1747188210838,474.3,182.27,182.11,10.9818]
[1747188210839,1.8279,182.34,182.2,9.96138679]
[1747188211042,1.8279,182.34,182.21,5.4051]
[1747188211341,476.1213,182.38,182.21,5.4051]
[1747188211537,11.68818679,182.37,182.21,5.4051]
[1747188212245,5.485,182.31,182.26,5.4862]
[1747188212542,11.68818679,182.37,182.21,1.7902]
[1747188213137,1.7268,182.37,182.21,1.7902]
[1747188213340,1.7268,182.37,182.22,1.7437]
[1747188213640,474.38,182.38,182.22,11.70508679]
[1747188213838,474.38,182.38,182.26,9.96138679]
[1747188214140,227.40030958,182.41,182.26,9.96138679]
[1747188214742,474.32,182.47,182.26,9.96138679]
[1747188214940,3.59,182.46,182.26,232.96138679]
[1747188215142,3.59,182.46,182.26,223.0]
[1747188215344,5.4836,182.36,182.3,5.4851]
[1747188215545,9.96138679,182.44,182.23,234.68738679]
[1747188215742,9.96138679,182.4,182.23,1.726]
[1747188216044,9.96138679,182.4,182.3,5.4851]
[1747188216641,9.96138679,182.4,182.29,5.4854]
[1747188216842,9.96138679,182.4,182.23,1.726]
[1747188217144,9.96138679,182.4,182.3,5.485]
[1747188217341,5.4833,182.37,182.23,1.726]
[1747188217643,9.96138679,182.44,182.34,5.4838]
[1747188217843,9.96138679,182.44,182.23,1.726]
[1747188218043,9.96138679,182.44,182.23,224.726]
[1747188218341,3.59,182.46,182.26,9.96138679]
[1747188218948,3.59,182.46,182.3,9.96138679]
[1747188219137,3.59,182.46,182.4,5.4821]
[1747188219342,3.59,182.46,182.31,3.751]
[1747188219844,474.32,182.47,182.34,9.96138679]
[1747188220042,474.32,182.47,182.35,1.7396]
[1747188220842,474.32,182.47,182.45,5.4805]
[1747188221046,474.32,182.47,182.35,1.7396]
[1747188221546,5.4809,182.45,182.35,1.7396]
[1747188221946,5.4809,182.45,182.4,5.4821]
[1747188222351,474.32,182.47,182.35,1.7396]
[1747188222738,475.8572,182.56,182.38,9.96138679]
[1747188222945,5.4786,182.52,182.39,1.7656]
[1747188223138,475.8572,182.56,182.42,9.96138679]
[1747188223348,475.8572,182.56,182.43,1.8046]
[1747188223543,5.4779,182.55,182.5,5.479]
[1747188223747,474.1,182.56,182.43,1.8046]
[1747188224748,474.1,182.56,182.46,9.96138679]
[1747188224945,474.1,182.56,182.47,1.7457]
[1747188225851,474.1,182.56,182.43,1.8046]
[1747188226054,1.7567,182.55,182.43,1.8046]
[1747188226650,474.1,182.56,182.43,1.8046]
[1747188226846,474.1,182.56,182.52,5.4782]
[1747188227147,474.1,182.56,182.44,9.96138679]
[1747188227950,1.7567,182.6,182.54,5.4779]
[1747188228153,1.7567,182.6,182.44,232.96138679]
[1747188230152,1.8169,182.64,182.48,9.96138679]
[1747188230457,1.8169,182.64,182.49,3.6111]
[1747188230758,7.2919,182.64,182.6,5.4761]
[1747188231250,475.7682,182.65,182.62,5.4754]
[1747188231551,473.88,182.65,182.52,9.96138679]
[1747188231753,473.88,182.65,182.53,1.8019]
[1747188232251,473.88,182.65,182.49,226.6111]
[1747188232467,5.4755,182.62,182.49,226.6111]
[1747188232755,1.8423,182.64,182.49,226.6111]
[1747188234054,5.4753,182.63,182.49,226.6111]
[1747188234655,5.4757,182.62,182.57,5.4769]
[1747188234956,1.8423,182.64,182.49,226.6111]
[1747188235555,1.8423,182.64,182.49,3.6111]
[1747188235751,1.8423,182.64,182.53,5.478]
[1747188235953,1.8423,182.64,182.49,3.6111]
[1747188236147,1.8423,182.64,182.49,1.8367]
[1747188236353,5.4767,182.59,182.53,5.478]
[1747188236555,1.8423,182.64,182.49,1.8367]
[1747188236956,1.8423,182.64,182.55,5.4774]
[1747188237457,1.8423,182.64,182.49,1.8367]
[1747188237957,5.4761,182.6,182.54,5.4777]
[1747188238154,5.4761,182.6,182.49,1.8367]
[1747188238356,1.8423,182.64,182.49,1.8367]
[1747188239564,5.4764,182.6,182.55,5.4776]